[Event "Titled Tuesday Blitz July 25 Late 2023"]
[White "Nenezic, Marko"]
[Black "Piesik, Piotr"]
[WhiteFideId "912123"]
[BlackFideId "1136194"]
[WhiteElo "2773"]
[BlackElo "2606"]
[Result "1-0"]
[Round "7"]
[TimeControl "180+2"]
[Date "2023.07.25"]
[WhiteClock "0:00:13"]
[BlackClock "0:00:12"]
[Board "34"]

1. d4 {[%clk 0:03:00]}  c5 {[%clk 0:02:59]} 2. d5 {[%clk 0:03:00]}  e5 {[%clk 0:02:58]} 3. Nc3 {[%clk 0:02:59]}  d6 {[%clk 0:02:58]} 4. e4 {[%clk 0:02:58]}  Be7 {[%clk 0:02:58]} 5. Bb5+ {[%clk 0:02:58]}  Nd7 {[%clk 0:02:58]} 6. a4 {[%clk 0:02:55]}  Bg5 {[%clk 0:02:58]} 7. Nf3 {[%clk 0:02:41]}  Bxc1 {[%clk 0:02:58]} 8. Qxc1 {[%clk 0:02:41]}  Ne7 {[%clk 0:02:59]} 9. O-O {[%clk 0:02:40]}  O-O {[%clk 0:02:59]} 10. a5 {[%clk 0:02:40]}  a6 {[%clk 0:02:58]} 11. Bd3 {[%clk 0:02:41]}  h6 {[%clk 0:02:58]} 12. Nd2 {[%clk 0:02:41]}  Ng6 {[%clk 0:02:56]} 13. Nc4 {[%clk 0:02:42]}  Nf6 {[%clk 0:02:56]} 14. Re1 {[%clk 0:02:40]}  Ne8 {[%clk 0:02:50]} 15. Nb6 {[%clk 0:02:39]}  Rb8 {[%clk 0:02:50]} 16. g3 {[%clk 0:02:23]}  Bh3 {[%clk 0:02:45]} 17. Qd1 {[%clk 0:02:23]}  Qg5 {[%clk 0:02:41]} 18. Kh1 {[%clk 0:02:20]}  Nc7 {[%clk 0:02:38]} 19. Bf1 {[%clk 0:02:07]}  Bxf1 {[%clk 0:02:36]} 20. Rxf1 {[%clk 0:02:08]}  Rbd8 {[%clk 0:02:35]} 21. Qe2 {[%clk 0:02:04]}  f5 {[%clk 0:02:34]} 22. exf5 {[%clk 0:02:04]}  Qxf5 {[%clk 0:02:34]} 23. Rad1 {[%clk 0:01:58]}  Ne7 {[%clk 0:02:33]} 24. Ne4 {[%clk 0:01:58]}  Ne8 {[%clk 0:02:30]} 25. Nc4 {[%clk 0:01:54]}  Qg6 {[%clk 0:02:25]} 26. f3 {[%clk 0:01:52]}  Nf5 {[%clk 0:02:25]} 27. c3 {[%clk 0:01:50]}  h5 {[%clk 0:02:19]} 28. Rg1 {[%clk 0:01:49]}  Nf6 {[%clk 0:02:19]} 29. Nxf6+ {[%clk 0:01:43]}  Qxf6 {[%clk 0:02:16]} 30. Nd2 {[%clk 0:01:43]}  Ne7 {[%clk 0:02:11]} 31. Rgf1 {[%clk 0:01:38]}  h4 {[%clk 0:02:10]} 32. Ne4 {[%clk 0:01:38]}  Qh6 {[%clk 0:02:10]} 33. Kg2 {[%clk 0:01:33]}  Rf5 {[%clk 0:02:05]} 34. b4 {[%clk 0:01:16]}  cxb4 {[%clk 0:02:04]} 35. cxb4 {[%clk 0:01:17]}  Rc8 {[%clk 0:02:03]} 36. Rf2 {[%clk 0:01:12]}  Rff8 {[%clk 0:01:58]} 37. b5 {[%clk 0:01:12]}  Nf5 {[%clk 0:01:50]} 38. Rd3 {[%clk 0:01:09]}  h3+ {[%clk 0:01:48]} 39. Kg1 {[%clk 0:01:06]}  Rc1+ {[%clk 0:01:48]} 40. Rf1 {[%clk 0:01:04]}  Rfc8 {[%clk 0:01:44]} 41. Rdd1 {[%clk 0:01:00]}  Nd4 {[%clk 0:01:40]} 42. Qd3 {[%clk 0:00:56]}  R8c2 {[%clk 0:01:25]} 43. bxa6 {[%clk 0:00:50]}  Rg2+ {[%clk 0:01:18]} 44. Kh1 {[%clk 0:00:50]}  Rcc2 {[%clk 0:01:19]} 45. Rf2 {[%clk 0:00:41]}  Rgxf2 {[%clk 0:01:13]} 46. Nxf2 {[%clk 0:00:41]}  bxa6 {[%clk 0:01:13]} 47. Ne4 {[%clk 0:00:33]}  Rc1 {[%clk 0:01:11]} 48. f4 {[%clk 0:00:32]}  Rxd1+ {[%clk 0:01:05]} 49. Qxd1 {[%clk 0:00:33]}  Qg6 {[%clk 0:01:05]} 50. Qd3 {[%clk 0:00:31]}  Qf5 {[%clk 0:00:44]} 51. Kg1 {[%clk 0:00:30]}  Nb5 {[%clk 0:00:37]} 52. Nc5 {[%clk 0:00:24]}  Qc8 {[%clk 0:00:32]} 53. Nb3 {[%clk 0:00:23]}  exf4 {[%clk 0:00:30]} 54. Kf2 {[%clk 0:00:19]}  Qg4 {[%clk 0:00:27]} 55. Qf3 {[%clk 0:00:18]}  fxg3+ {[%clk 0:00:27]} 56. Qxg3 {[%clk 0:00:18]}  Qb4 {[%clk 0:00:24]} 57. Qxh3 {[%clk 0:00:16]}  Qf4+ {[%clk 0:00:19]} 58. Kg2 {[%clk 0:00:14]}  Qe4+ {[%clk 0:00:19]} 59. Qf3 {[%clk 0:00:14]}  Qc2+ {[%clk 0:00:19]} 60. Kg3 {[%clk 0:00:13]}  Nc3 {[%clk 0:00:18]} 61. Nd4 {[%clk 0:00:13]}  Ne4+ {[%clk 0:00:15]} 62. Kf4 {[%clk 0:00:13]}  Nf6 {[%clk 0:00:12]} 63. Nxc2 {[%clk 0:00:13]} 1-0


[Site "https://www.chess.com"]

[Event "Titled Tuesday Blitz July 25 Late 2023"]
[White "Medina Paz, Miguel"]
[Black "Elsa167"]
[WhiteFideId "7300379"]
[WhiteElo "2601"]
[BlackElo "2767"]
[Result "0-1"]
[Round "7"]
[TimeControl "180+2"]
[Date "2023.07.25"]
[WhiteClock "0:01:09"]
[BlackClock "0:00:11"]
[Board "36"]

1. e4 {[%clk 0:03:00]}  e6 {[%clk 0:02:59]} 2. d4 {[%clk 0:03:00]}  d5 {[%clk 0:02:59]} 3. e5 {[%clk 0:03:00]}  c5 {[%clk 0:02:59]} 4. Nf3 {[%clk 0:03:01]}  Nc6 {[%clk 0:03:00]} 5. Bd3 {[%clk 0:03:02]}  cxd4 {[%clk 0:02:57]} 6. O-O {[%clk 0:03:02]}  Nge7 {[%clk 0:02:58]} 7. Bf4 {[%clk 0:03:02]}  Ng6 {[%clk 0:02:55]} 8. Bg3 {[%clk 0:03:02]}  f5 {[%clk 0:02:54]} 9. h4 {[%clk 0:02:58]}  Bd7 {[%clk 0:02:45]} 10. h5 {[%clk 0:02:58]}  Nge7 {[%clk 0:02:46]} 11. c3 {[%clk 0:02:55]}  dxc3 {[%clk 0:02:40]} 12. Nxc3 {[%clk 0:02:55]}  Nc8 {[%clk 0:02:37]} 13. Nb5 {[%clk 0:02:47]}  Be7 {[%clk 0:02:28]} 14. Re1 {[%clk 0:02:42]}  O-O {[%clk 0:02:27]} 15. Rc1 {[%clk 0:02:42]}  a6 {[%clk 0:02:20]} 16. Nd6 {[%clk 0:02:42]}  f4 {[%clk 0:02:08]} 17. Bh2 {[%clk 0:02:39]}  Nxd6 {[%clk 0:02:07]} 18. exd6 {[%clk 0:02:39]}  Bxd6 {[%clk 0:02:08]} 19. Qc2 {[%clk 0:02:33]}  h6 {[%clk 0:02:03]} 20. Bh7+ {[%clk 0:02:27]}  Kh8 {[%clk 0:02:03]} 21. Bg6 {[%clk 0:02:28]}  e5 {[%clk 0:01:56]} 22. Qb3 {[%clk 0:02:21]}  d4 {[%clk 0:01:16]} 23. Qxb7 {[%clk 0:02:11]}  Rb8 {[%clk 0:01:15]} 24. Qxa6 {[%clk 0:02:09]}  Rb6 {[%clk 0:01:11]} 25. Qd3 {[%clk 0:02:05]}  Rxb2 {[%clk 0:01:08]} 26. Qe4 {[%clk 0:01:56]}  Qb6 {[%clk 0:00:49]} 27. Nh4 {[%clk 0:01:49]}  d3 {[%clk 0:00:49]} 28. Rf1 {[%clk 0:01:49]}  d2 {[%clk 0:00:48]} 29. Rcd1 {[%clk 0:01:49]}  Be7 {[%clk 0:00:44]} 30. Nf5 {[%clk 0:01:43]}  Bxf5 {[%clk 0:00:43]} 31. Bxf5 {[%clk 0:01:43]}  Rxa2 {[%clk 0:00:27]} 32. Be6 {[%clk 0:01:41]}  Rb2 {[%clk 0:00:23]} 33. Bc4 {[%clk 0:01:37]}  Rb4 {[%clk 0:00:14]} 34. Rxd2 {[%clk 0:01:32]}  Qc5 {[%clk 0:00:14]} 35. Rc2 {[%clk 0:01:31]}  Na5 {[%clk 0:00:12]} 36. Rfc1 {[%clk 0:01:25]}  Rc8 {[%clk 0:00:12]} 37. Bd3 {[%clk 0:01:19]}  Rxe4 {[%clk 0:00:11]} 38. Rxc5 {[%clk 0:01:19]}  Rxc5 {[%clk 0:00:11]} 39. Rxc5 {[%clk 0:01:09]}  Re1+ {[%clk 0:00:11]} 0-1


[Site "https://www.chess.com"]

[Event "Titled Tuesday Blitz July 25 Late 2023"]
[White "Bolourchifard, Farzad"]
[Black "Cappelletto, Joshuaede"]
[WhiteFideId "12510084"]
[BlackFideId "2824383"]
[WhiteElo "2755"]
[BlackElo "2581"]
[Result "0-1"]
[Round "7"]
[TimeControl "180+2"]
[Date "2023.07.25"]
[WhiteClock "0:00:06"]
[BlackClock "0:00:53"]
[Board "38"]

1. d4 {[%clk 0:02:56]}  Nf6 {[%clk 0:02:59]} 2. Nf3 {[%clk 0:02:56]}  c5 {[%clk 0:02:58]} 3. d5 {[%clk 0:02:56]}  e6 {[%clk 0:02:58]} 4. Nc3 {[%clk 0:02:56]}  d6 {[%clk 0:02:54]} 5. Bg5 {[%clk 0:02:54]}  Be7 {[%clk 0:02:53]} 6. e4 {[%clk 0:02:53]}  O-O {[%clk 0:02:53]} 7. Bc4 {[%clk 0:02:50]}  exd5 {[%clk 0:02:53]} 8. Bxd5 {[%clk 0:02:24]}  Nxd5 {[%clk 0:02:52]} 9. Qxd5 {[%clk 0:02:25]}  Be6 {[%clk 0:02:42]} 10. Bxe7 {[%clk 0:02:08]}  Qxe7 {[%clk 0:02:42]} 11. Qg5 {[%clk 0:02:05]}  f6 {[%clk 0:02:36]} 12. Qd2 {[%clk 0:02:02]}  Nc6 {[%clk 0:02:29]} 13. O-O {[%clk 0:02:01]}  Rad8 {[%clk 0:02:29]} 14. Rad1 {[%clk 0:01:57]}  a6 {[%clk 0:02:28]} 15. Nd5 {[%clk 0:01:50]}  Qf7 {[%clk 0:02:28]} 16. c3 {[%clk 0:01:43]}  Ne7 {[%clk 0:02:18]} 17. c4 {[%clk 0:01:25]}  Nxd5 {[%clk 0:02:15]} 18. exd5 {[%clk 0:01:15]}  Bg4 {[%clk 0:02:14]} 19. Qf4 {[%clk 0:01:14]}  Qh5 {[%clk 0:02:12]} 20. Rde1 {[%clk 0:01:09]}  Bxf3 {[%clk 0:02:07]} 21. gxf3 {[%clk 0:01:01]}  Qg5+ {[%clk 0:01:58]} 22. Qxg5 {[%clk 0:00:48]}  fxg5 {[%clk 0:01:59]} 23. Re7 {[%clk 0:00:48]}  b5 {[%clk 0:01:53]} 24. cxb5 {[%clk 0:00:37]}  axb5 {[%clk 0:01:54]} 25. Rb7 {[%clk 0:00:37]}  b4 {[%clk 0:01:43]} 26. Re1 {[%clk 0:00:37]}  Rde8 {[%clk 0:01:22]} 27. Re6 {[%clk 0:00:31]}  Rxe6 {[%clk 0:01:19]} 28. dxe6 {[%clk 0:00:32]}  Re8 {[%clk 0:01:20]} 29. e7 {[%clk 0:00:17]}  Kf7 {[%clk 0:01:19]} 30. a4 {[%clk 0:00:17]}  bxa3 {[%clk 0:01:17]} 31. bxa3 {[%clk 0:00:18]}  Rxe7 {[%clk 0:01:12]} 32. Rb6 {[%clk 0:00:18]}  Ke6 {[%clk 0:01:11]} 33. Kf1 {[%clk 0:00:14]}  Ra7 {[%clk 0:01:10]} 34. Rb3 {[%clk 0:00:15]}  d5 {[%clk 0:01:11]} 35. Ke2 {[%clk 0:00:14]}  d4 {[%clk 0:01:11]} 36. f4 {[%clk 0:00:11]}  gxf4 {[%clk 0:01:11]} 37. Rh3 {[%clk 0:00:12]}  g6 {[%clk 0:01:07]} 38. a4 {[%clk 0:00:11]}  Kd5 {[%clk 0:01:06]} 39. Ra3 {[%clk 0:00:10]}  Ra5 {[%clk 0:01:05]} 40. Kd2 {[%clk 0:00:10]}  c4 {[%clk 0:01:05]} 41. Ra1 {[%clk 0:00:10]}  Kc5 {[%clk 0:01:03]} 42. Ke2 {[%clk 0:00:08]}  Kb4 {[%clk 0:01:01]} 43. Kf3 {[%clk 0:00:07]}  Rxa4 {[%clk 0:01:01]} 44. Rb1+ {[%clk 0:00:07]}  Kc3 {[%clk 0:01:01]} 45. Kxf4 {[%clk 0:00:08]}  Ra2 {[%clk 0:01:00]} 46. Rf1 {[%clk 0:00:07]}  d3 {[%clk 0:01:00]} 47. Kg5 {[%clk 0:00:08]}  d2 {[%clk 0:00:59]} 48. Kh6 {[%clk 0:00:08]}  Ra7 {[%clk 0:01:00]} 49. f4 {[%clk 0:00:08]}  Kd3 {[%clk 0:00:59]} 50. h4 {[%clk 0:00:08]}  c3 {[%clk 0:00:59]} 51. f5 {[%clk 0:00:08]}  gxf5 {[%clk 0:00:59]} 52. h5 {[%clk 0:00:09]}  c2 {[%clk 0:00:58]} 53. Rf3+ {[%clk 0:00:07]}  Ke2 {[%clk 0:00:58]} 54. Rg3 {[%clk 0:00:08]}  d1=Q {[%clk 0:00:57]} 55. Rg1 {[%clk 0:00:09]}  Ra6+ {[%clk 0:00:55]} 56. Rg6 {[%clk 0:00:06]}  hxg6 {[%clk 0:00:53]} 0-1


[Site "https://www.chess.com"]

[Event "Titled Tuesday Blitz July 25 Late 2023"]
[White "Vovk, Orest"]
[Black "Remizov, Yaroslav"]
[WhiteFideId "14113490"]
[BlackFideId "34134015"]
[WhiteElo "2571"]
[BlackElo "2743"]
[Result "0-1"]
[Round "7"]
[TimeControl "180+2"]
[Date "2023.07.25"]
[WhiteClock "0:02:09"]
[BlackClock "0:02:12"]
[Board "41"]

1. g4 {[%clk 0:02:48]}  d5 {[%clk 0:02:58]} 2. h3 {[%clk 0:02:48]}  h5 {[%clk 0:02:57]} 3. g5 {[%clk 0:02:47]}  e5 {[%clk 0:02:58]} 4. Bg2 {[%clk 0:02:46]}  Nc6 {[%clk 0:02:28]} 5. c4 {[%clk 0:02:46]}  dxc4 {[%clk 0:02:25]} 6. Bxc6+ {[%clk 0:02:46]}  bxc6 {[%clk 0:02:26]} 7. Qa4 {[%clk 0:02:46]}  Bd6 {[%clk 0:02:20]} 8. Nc3 {[%clk 0:02:38]}  Ne7 {[%clk 0:02:19]} 9. Qxc4 {[%clk 0:02:33]}  O-O {[%clk 0:02:19]} 10. d3 {[%clk 0:02:31]}  Rb8 {[%clk 0:02:19]} 11. a3 {[%clk 0:02:30]}  Be6 {[%clk 0:02:16]} 12. Qh4 {[%clk 0:02:30]}  g6 {[%clk 0:02:14]} 13. Ne4 {[%clk 0:02:27]}  Nf5 {[%clk 0:02:14]} 14. Nf6+ {[%clk 0:02:13]}  Qxf6 {[%clk 0:02:15]} 15. gxf6 {[%clk 0:02:13]}  Nxh4 {[%clk 0:02:15]} 16. e4 {[%clk 0:02:13]}  Ng2+ {[%clk 0:02:10]} 17. Ke2 {[%clk 0:02:12]}  Nf4+ {[%clk 0:02:11]} 18. Bxf4 {[%clk 0:02:12]}  exf4 {[%clk 0:02:12]} 19. Nf3 {[%clk 0:02:09]}  Rxb2+ {[%clk 0:02:12]} 0-1


[Site "https://www.chess.com"]

[Event "Titled Tuesday Blitz July 25 Late 2023"]
[White "Matinian, Nikita"]
[Black "Principe, Alexander"]
[WhiteFideId "24129100"]
[BlackFideId "3804542"]
[WhiteElo "2742"]
[BlackElo "2553"]
[Result "0-1"]
[Round "7"]
[TimeControl "180+2"]
[Date "2023.07.25"]
[WhiteClock "0:00:00"]
[BlackClock "0:00:06"]
[Board "42"]

1. e4 {[%clk 0:03:00]}  e6 {[%clk 0:02:59]} 2. d4 {[%clk 0:03:00]}  d5 {[%clk 0:03:00]} 3. Nc3 {[%clk 0:03:00]}  Bb4 {[%clk 0:03:00]} 4. e5 {[%clk 0:03:01]}  c5 {[%clk 0:03:00]} 5. a3 {[%clk 0:03:01]}  Bxc3+ {[%clk 0:03:01]} 6. bxc3 {[%clk 0:03:02]}  Ne7 {[%clk 0:03:01]} 7. h4 {[%clk 0:03:01]}  Qa5 {[%clk 0:03:01]} 8. Bd2 {[%clk 0:03:00]}  Bd7 {[%clk 0:03:02]} 9. h5 {[%clk 0:03:00]}  h6 {[%clk 0:03:02]} 10. Qg4 {[%clk 0:02:57]}  Kf8 {[%clk 0:02:56]} 11. Rh3 {[%clk 0:02:56]}  Qa4 {[%clk 0:02:53]} 12. Bd3 {[%clk 0:02:47]}  c4 {[%clk 0:02:52]} 13. Rg3 {[%clk 0:02:46]}  Rg8 {[%clk 0:02:34]} 14. Bh7 {[%clk 0:02:40]}  Nf5 {[%clk 0:02:35]} 15. Bxg8 {[%clk 0:02:34]}  Nxg3 {[%clk 0:02:35]} 16. Qxg3 {[%clk 0:01:28]}  Qxc2 {[%clk 0:02:34]} 17. Rc1 {[%clk 0:01:27]}  Qe4+ {[%clk 0:02:33]} 18. Ne2 {[%clk 0:01:27]}  Kxg8 {[%clk 0:02:32]} 19. Bxh6 {[%clk 0:01:27]}  g6 {[%clk 0:02:30]} 20. hxg6 {[%clk 0:01:21]}  Qxg6 {[%clk 0:02:29]} 21. Bg5 {[%clk 0:01:20]}  Ba4 {[%clk 0:02:23]} 22. Nf4 {[%clk 0:01:15]}  Qh7 {[%clk 0:01:40]} 23. Be7+ {[%clk 0:00:34]}  Qg7 {[%clk 0:01:38]} 24. Qh4 {[%clk 0:00:30]}  Nd7 {[%clk 0:01:33]} 25. Kd2 {[%clk 0:00:24]}  Qh7 {[%clk 0:01:15]} 26. Qxh7+ {[%clk 0:00:16]}  Kxh7 {[%clk 0:01:15]} 27. Rh1+ {[%clk 0:00:15]}  Kg7 {[%clk 0:01:12]} 28. Rh3 {[%clk 0:00:15]}  Rg8 {[%clk 0:00:49]} 29. Nh5+ {[%clk 0:00:10]}  Kg6 {[%clk 0:00:46]} 30. g4 {[%clk 0:00:06]}  Re8 {[%clk 0:00:36]} 31. Bd6 {[%clk 0:00:05]}  Kg5 {[%clk 0:00:19]} 32. Rg3 {[%clk 0:00:04]}  Kg6 {[%clk 0:00:11]} 33. f4 {[%clk 0:00:04]}  f5 {[%clk 0:00:09]} 34. exf6 {[%clk 0:00:02]}  Nxf6 {[%clk 0:00:08]} 35. Nxf6 {[%clk 0:00:03]}  Kxf6 {[%clk 0:00:09]} 36. Be5+ {[%clk 0:00:03]}  Kg6 {[%clk 0:00:09]} 37. Rh3 {[%clk 0:00:04]}  Re7 {[%clk 0:00:09]} 38. Rh8 {[%clk 0:00:03]}  Rh7 {[%clk 0:00:08]} 39. Rg8+ {[%clk 0:00:03]}  Kf7 {[%clk 0:00:08]} 40. Rc8 {[%clk 0:00:04]}  Rh2+ {[%clk 0:00:07]} 41. Ke3 {[%clk 0:00:04]}  Rh3+ {[%clk 0:00:08]} 42. Kf2 {[%clk 0:00:04]}  Rxc3 {[%clk 0:00:07]} 43. f5 {[%clk 0:00:04]}  exf5 {[%clk 0:00:08]} 44. gxf5 {[%clk 0:00:05]}  Bd1 {[%clk 0:00:07]} 45. Rc7+ {[%clk 0:00:05]}  Ke8 {[%clk 0:00:07]} 46. f6 {[%clk 0:00:06]}  Rf3+ {[%clk 0:00:07]} 47. Ke1 {[%clk 0:00:06]}  Ba4 {[%clk 0:00:07]} 48. Re7+ {[%clk 0:00:06]}  Kd8 {[%clk 0:00:07]} 49. Rxb7 {[%clk 0:00:06]}  c3 {[%clk 0:00:07]} 50. Rb8+ {[%clk 0:00:05]}  Kd7 {[%clk 0:00:07]} 51. Rb7+ {[%clk 0:00:06]}  Ke6 {[%clk 0:00:07]} 52. Re7+ {[%clk 0:00:06]}  Kf5 {[%clk 0:00:08]} 53. f7 {[%clk 0:00:06]}  Kg4 {[%clk 0:00:08]} 54. Rc7 {[%clk 0:00:06]}  c2 {[%clk 0:00:08]} 55. Kd2 {[%clk 0:00:07]}  Rf2+ {[%clk 0:00:09]} 56. Ke3 {[%clk 0:00:06]}  Rf3+ {[%clk 0:00:09]} 57. Ke2 {[%clk 0:00:07]}  Bb5+ {[%clk 0:00:09]} 58. Kd2 {[%clk 0:00:07]}  Rf2+ {[%clk 0:00:09]} 59. Kc1 {[%clk 0:00:07]}  Bd3 {[%clk 0:00:09]} 60. Kb2 {[%clk 0:00:07]}  Bg6 {[%clk 0:00:06]} 61. f8=Q {[%clk 0:00:06]}  Rxf8 {[%clk 0:00:06]} 62. Rg7 {[%clk 0:00:05]}  Kh5 {[%clk 0:00:05]} 63. Rc7 {[%clk 0:00:02]}  Rf1 {[%clk 0:00:06]} 64. Kb3 {[%clk 0:00:01]}  Rb1+ {[%clk 0:00:06]} 65. Ka2 {[%clk 0:00:00]}  c1=Q {[%clk 0:00:06]} 0-1


[Site "https://www.chess.com"]

[Event "Titled Tuesday Blitz July 25 Late 2023"]
[White "Yanchenko, Roman"]
[Black "Przybylski, Wojciech"]
[WhiteFideId "4137329"]
[BlackFideId "1117599"]
[WhiteElo "2737"]
[BlackElo "2553"]
[Result "1-0"]
[Round "7"]
[TimeControl "180+2"]
[Date "2023.07.25"]
[WhiteClock "0:00:28"]
[BlackClock "0:00:05"]
[Board "43"]

1. d4 {[%clk 0:03:00]}  Nf6 {[%clk 0:02:57]} 2. Nf3 {[%clk 0:03:00]}  e6 {[%clk 0:02:54]} 3. c4 {[%clk 0:03:00]}  b6 {[%clk 0:02:53]} 4. g3 {[%clk 0:03:00]}  Ba6 {[%clk 0:02:53]} 5. b3 {[%clk 0:02:59]}  Bb4+ {[%clk 0:02:52]} 6. Bd2 {[%clk 0:03:00]}  Be7 {[%clk 0:02:52]} 7. Bg2 {[%clk 0:03:00]}  O-O {[%clk 0:02:52]} 8. O-O {[%clk 0:03:01]}  d5 {[%clk 0:02:52]} 9. Qc2 {[%clk 0:03:01]}  c6 {[%clk 0:02:49]} 10. Rd1 {[%clk 0:03:01]}  Bb7 {[%clk 0:02:47]} 11. Bg5 {[%clk 0:03:00]}  Ne4 {[%clk 0:02:46]} 12. Bxe7 {[%clk 0:03:00]}  Qxe7 {[%clk 0:02:45]} 13. Nc3 {[%clk 0:03:00]}  f5 {[%clk 0:02:44]} 14. Ne5 {[%clk 0:02:57]}  Nd7 {[%clk 0:02:43]} 15. Nd3 {[%clk 0:02:57]}  Rac8 {[%clk 0:02:37]} 16. Rac1 {[%clk 0:02:44]}  Kh8 {[%clk 0:02:25]} 17. f3 {[%clk 0:02:25]}  Nd6 {[%clk 0:02:23]} 18. cxd5 {[%clk 0:02:19]}  cxd5 {[%clk 0:02:09]} 19. Qd2 {[%clk 0:02:18]}  Ba6 {[%clk 0:02:04]} 20. Nb4 {[%clk 0:01:56]}  Bb7 {[%clk 0:02:02]} 21. h4 {[%clk 0:01:55]}  f4 {[%clk 0:02:00]} 22. gxf4 {[%clk 0:01:50]}  Qxh4 {[%clk 0:01:59]} 23. Nd3 {[%clk 0:01:50]}  Nf5 {[%clk 0:01:55]} 24. e3 {[%clk 0:01:43]}  Rf6 {[%clk 0:01:43]} 25. Qf2 {[%clk 0:01:39]}  Rg6 {[%clk 0:01:11]} 26. Qxh4 {[%clk 0:01:33]}  Nxh4 {[%clk 0:01:11]} 27. Ne1 {[%clk 0:01:33]}  Ba6 {[%clk 0:01:06]} 28. Kf2 {[%clk 0:01:31]}  Nf6 {[%clk 0:00:52]} 29. Bh3 {[%clk 0:01:26]}  Nf5 {[%clk 0:00:49]} 30. Ng2 {[%clk 0:01:14]}  Rh6 {[%clk 0:00:43]} 31. Bg4 {[%clk 0:01:03]}  Rh2 {[%clk 0:00:34]} 32. Bxf5 {[%clk 0:00:54]}  exf5 {[%clk 0:00:34]} 33. Kg3 {[%clk 0:00:54]}  Rh6 {[%clk 0:00:29]} 34. Nh4 {[%clk 0:00:38]}  Nh5+ {[%clk 0:00:19]} 35. Kf2 {[%clk 0:00:38]}  Nxf4 {[%clk 0:00:13]} 36. exf4 {[%clk 0:00:38]}  Rxh4 {[%clk 0:00:12]} 37. Kg3 {[%clk 0:00:38]}  Rh6 {[%clk 0:00:10]} 38. Nxd5 {[%clk 0:00:39]}  Rf8 {[%clk 0:00:09]} 39. Rc7 {[%clk 0:00:32]}  Rd6 {[%clk 0:00:08]} 40. Ne3 {[%clk 0:00:32]}  Be2 {[%clk 0:00:07]} 41. Rd2 {[%clk 0:00:32]}  Bb5 {[%clk 0:00:07]} 42. Rxa7 {[%clk 0:00:31]}  h6 {[%clk 0:00:06]} 43. d5 {[%clk 0:00:30]}  Bd7 {[%clk 0:00:05]} 44. Nc4 {[%clk 0:00:29]}  Rg6+ {[%clk 0:00:06]} 45. Kf2 {[%clk 0:00:30]}  Bb5 {[%clk 0:00:05]} 46. Ne5 {[%clk 0:00:29]}  Rd6 {[%clk 0:00:05]} 47. a4 {[%clk 0:00:28]}  Be8 {[%clk 0:00:04]} 48. Nc4 {[%clk 0:00:28]}  Rg6 {[%clk 0:00:04]} 49. Ra8 {[%clk 0:00:27]}  Kg8 {[%clk 0:00:04]} 50. d6 {[%clk 0:00:26]}  Bc6 {[%clk 0:00:04]} 51. Rxf8+ {[%clk 0:00:25]}  Kxf8 {[%clk 0:00:04]} 52. Ne5 {[%clk 0:00:25]}  Be8 {[%clk 0:00:02]} 53. Nxg6+ {[%clk 0:00:25]}  Kf7 {[%clk 0:00:02]} 54. Ne5+ {[%clk 0:00:24]}  Ke6 {[%clk 0:00:02]} 55. d7 {[%clk 0:00:25]}  Bxd7 {[%clk 0:00:02]} 56. Nxd7 {[%clk 0:00:25]}  g5 {[%clk 0:00:03]} 57. Nxb6 {[%clk 0:00:26]}  gxf4 {[%clk 0:00:03]} 58. Nc4 {[%clk 0:00:26]}  Kf6 {[%clk 0:00:03]} 59. a5 {[%clk 0:00:26]}  Kg5 {[%clk 0:00:03]} 60. a6 {[%clk 0:00:27]}  Kh4 {[%clk 0:00:04]} 61. a7 {[%clk 0:00:28]}  Kh3 {[%clk 0:00:04]} 62. a8=Q {[%clk 0:00:29]}  h5 {[%clk 0:00:05]} 63. Qg8 {[%clk 0:00:29]}  h4 {[%clk 0:00:05]} 64. Qg2# {[%clk 0:00:28]} 1-0


[Site "https://www.chess.com"]

[Event "Titled Tuesday Blitz July 25 Late 2023"]
[White "Karamsetty, Jeevan"]
[Black "Korchmar, Vasiliy"]
[WhiteFideId "2025337"]
[BlackFideId "24131750"]
[WhiteElo "2544"]
[BlackElo "2696"]
[Result "0-1"]
[Round "7"]
[TimeControl "180+2"]
[Date "2023.07.25"]
[WhiteClock "0:00:00"]
[BlackClock "0:00:26"]
[Board "44"]

1. e4 {[%clk 0:03:00]}  c5 {[%clk 0:02:59]} 2. Nc3 {[%clk 0:03:00]}  d6 {[%clk 0:03:00]} 3. f4 {[%clk 0:02:58]}  Nc6 {[%clk 0:03:00]} 4. Nf3 {[%clk 0:02:57]}  g6 {[%clk 0:03:00]} 5. Bc4 {[%clk 0:02:49]}  Bg7 {[%clk 0:02:59]} 6. O-O {[%clk 0:02:47]}  Nd4 {[%clk 0:02:59]} 7. d3 {[%clk 0:02:45]}  Nf6 {[%clk 0:02:48]} 8. e5 {[%clk 0:02:36]}  Nh5 {[%clk 0:02:33]} 9. Nxd4 {[%clk 0:02:10]}  cxd4 {[%clk 0:02:34]} 10. Ne4 {[%clk 0:02:09]}  O-O {[%clk 0:02:29]} 11. Bb3 {[%clk 0:01:48]}  dxe5 {[%clk 0:02:20]} 12. fxe5 {[%clk 0:01:45]}  Bxe5 {[%clk 0:02:21]} 13. Bh6 {[%clk 0:01:41]}  Bg7 {[%clk 0:02:21]} 14. Qd2 {[%clk 0:01:21]}  Nf6 {[%clk 0:02:03]} 15. Bxg7 {[%clk 0:01:04]}  Kxg7 {[%clk 0:02:03]} 16. Nxf6 {[%clk 0:00:56]}  exf6 {[%clk 0:02:03]} 17. Rf4 {[%clk 0:00:56]}  Be6 {[%clk 0:02:00]} 18. Raf1 {[%clk 0:00:52]}  Bxb3 {[%clk 0:01:57]} 19. axb3 {[%clk 0:00:53]}  f5 {[%clk 0:01:52]} 20. R1f3 {[%clk 0:00:39]}  Rc8 {[%clk 0:01:49]} 21. Rh3 {[%clk 0:00:37]}  h5 {[%clk 0:01:42]} 22. Qf2 {[%clk 0:00:25]}  Re8 {[%clk 0:01:20]} 23. Rg3 {[%clk 0:00:16]}  h4 {[%clk 0:00:48]} 24. Rgf3 {[%clk 0:00:09]}  Qf6 {[%clk 0:00:42]} 25. h3 {[%clk 0:00:08]}  Re5 {[%clk 0:00:35]} 26. Rxd4 {[%clk 0:00:07]}  Rce8 {[%clk 0:00:32]} 27. Qxh4 {[%clk 0:00:07]}  g5 {[%clk 0:00:29]} 28. Qf2 {[%clk 0:00:00]}  Re2 {[%clk 0:00:26]} 0-1


[Site "https://www.chess.com"]